[Event "Titled Tuesday Blitz January 10 Late 2023"]
[White "Miszler, Levente"]
[Black "Atakishiyev, Elmar"]
[WhiteFideId "763276"]
[BlackFideId "13410547"]
[WhiteElo "2271"]
[BlackElo "2363"]
[Result "0-1"]
[Round "01"]
[TimeControl "180+2"]
[Date "2023.01.10"]
[WhiteClock "0:00:28"]
[BlackClock "0:00:17"]

1. c4 {[%clk 0:00:00]}  Nf6 {[%clk 0:00:00]} 2. Nc3 {[%clk 0:03:00]}  g6 {[%clk 0:02:59]} 3. d4 {[%clk 0:02:58]}  Bg7 {[%clk 0:02:58]} 4. Nf3 {[%clk 0:02:52]}  O-O {[%clk 0:02:58]} 5. Bg5 {[%clk 0:02:52]}  d6 {[%clk 0:02:57]} 6. Qd2 {[%clk 0:02:51]}  Bg4 {[%clk 0:02:53]} 7. h3 {[%clk 0:02:50]}  Bxf3 {[%clk 0:02:53]} 8. gxf3 {[%clk 0:02:46]}  c5 {[%clk 0:02:53]} 9. d5 {[%clk 0:02:47]}  a6 {[%clk 0:02:53]} 10. h4 {[%clk 0:02:42]}  Nh5 {[%clk 0:02:48]} 11. Bh3 {[%clk 0:02:38]}  b5 {[%clk 0:02:43]} 12. Bg4 {[%clk 0:02:35]}  b4 {[%clk 0:02:43]} 13. Ne4 {[%clk 0:02:35]}  Nf6 {[%clk 0:02:35]} 14. h5 {[%clk 0:02:29]}  Nxg4 {[%clk 0:01:58]} 15. fxg4 {[%clk 0:02:10]}  f6 {[%clk 0:01:58]} 16. Bh6 {[%clk 0:02:09]}  g5 {[%clk 0:01:24]} 17. Bxg7 {[%clk 0:02:08]}  Kxg7 {[%clk 0:01:20]} 18. Ng3 {[%clk 0:01:44]}  Nd7 {[%clk 0:01:20]} 19. Nf5+ {[%clk 0:01:41]}  Kh8 {[%clk 0:01:17]} 20. f4 {[%clk 0:01:40]}  gxf4 {[%clk 0:01:17]} 21. Qxf4 {[%clk 0:01:35]}  Rg8 {[%clk 0:01:15]} 22. O-O-O {[%clk 0:01:36]}  Ne5 {[%clk 0:01:06]} 23. Rdg1 {[%clk 0:01:30]}  Rg5 {[%clk 0:01:06]} 24. h6 {[%clk 0:01:28]}  Qa5 {[%clk 0:01:03]} 25. Kb1 {[%clk 0:01:28]}  b3 {[%clk 0:00:47]} 26. a3 {[%clk 0:01:26]}  Ng6 {[%clk 0:00:42]} 27. Qe4 {[%clk 0:01:21]}  Qd2 {[%clk 0:00:38]} 28. Nxe7 {[%clk 0:01:13]}  Qc2+ {[%clk 0:00:29]} 29. Qxc2 {[%clk 0:01:02]}  bxc2+ {[%clk 0:00:29]} 30. Kxc2 {[%clk 0:01:00]}  Nxe7 {[%clk 0:00:30]} 31. Rf1 {[%clk 0:01:01]}  Rf8 {[%clk 0:00:31]} 32. Rf4 {[%clk 0:00:58]}  Ng6 {[%clk 0:00:29]} 33. Re4 {[%clk 0:00:55]}  Ne5 {[%clk 0:00:29]} 34. Rg1 {[%clk 0:00:55]}  f5 {[%clk 0:00:30]} 35. Rf4 {[%clk 0:00:52]}  Rxg4 {[%clk 0:00:30]} 36. Rgxg4 {[%clk 0:00:52]}  Nxg4 {[%clk 0:00:26]} 37. e4 {[%clk 0:00:51]}  Nxh6 {[%clk 0:00:26]} 38. exf5 {[%clk 0:00:51]}  Rxf5 {[%clk 0:00:23]} 39. Rh4 {[%clk 0:00:48]}  Nf7 {[%clk 0:00:23]} 40. b4 {[%clk 0:00:48]}  Kg7 {[%clk 0:00:22]} 41. b5 {[%clk 0:00:49]}  Ne5 {[%clk 0:00:18]} 42. bxa6 {[%clk 0:00:41]}  Rf7 {[%clk 0:00:18]} 43. Rh3 {[%clk 0:00:33]}  Ra7 {[%clk 0:00:17]} 44. Rg3+ {[%clk 0:00:28]}  Kf6 {[%clk 0:00:17]} 45. Rb3 {[%clk 0:00:29]}  Rxa6 {[%clk 0:00:17]} 46. Rb7 {[%clk 0:00:30]}  Nxc4 {[%clk 0:00:17]} 47. Rxh7 {[%clk 0:00:30]}  Rxa3 {[%clk 0:00:17]} 48. Rh6+ {[%clk 0:00:29]}  Ke5 {[%clk 0:00:17]} 49. Rh5+ {[%clk 0:00:28]}  Kd4 {[%clk 0:00:17]} 50. Rh4+ {[%clk 0:00:28]}  Kxd5 {[%clk 0:00:17]} 0-1


[Site "https://www.chess.com"]

[Event "Titled Tuesday Blitz January 10 Late 2023"]
[White "Riehle, Marco"]
[Black "Nikologorsky, Matfei"]
[WhiteFideId "12904392"]
[BlackFideId "24102474"]
[WhiteElo "2368"]
[BlackElo "2182"]
[Result "1-0"]
[Round "01"]
[TimeControl "180+2"]
[Date "2023.01.10"]
[WhiteClock "0:01:25"]
[BlackClock "0:00:04"]

1. e4 {[%clk 0:00:00]}  c5 {[%clk 0:00:00]} 2. a3 {[%clk 0:02:59]}  e6 {[%clk 0:02:59]} 3. b4 {[%clk 0:02:59]}  cxb4 {[%clk 0:02:55]} 4. axb4 {[%clk 0:02:59]}  d5 {[%clk 0:02:55]} 5. exd5 {[%clk 0:03:00]}  Qxd5 {[%clk 0:02:51]} 6. Nf3 {[%clk 0:02:59]}  Bxb4 {[%clk 0:02:50]} 7. Bb2 {[%clk 0:02:57]}  Nf6 {[%clk 0:02:46]} 8. Bd3 {[%clk 0:02:57]}  b6 {[%clk 0:02:45]} 9. O-O {[%clk 0:02:56]}  Bb7 {[%clk 0:02:39]} 10. Nc3 {[%clk 0:02:52]}  Qh5 {[%clk 0:02:39]} 11. Nb5 {[%clk 0:02:48]}  O-O {[%clk 0:02:31]} 12. Bxf6 {[%clk 0:02:45]}  gxf6 {[%clk 0:02:05]} 13. Nc7 {[%clk 0:02:40]}  Nd7 {[%clk 0:02:04]} 14. Nxa8 {[%clk 0:02:40]}  Rxa8 {[%clk 0:02:02]} 15. Qe2 {[%clk 0:02:40]}  Bd6 {[%clk 0:02:03]} 16. Be4 {[%clk 0:02:36]}  Ne5 {[%clk 0:01:58]} 17. h3 {[%clk 0:02:34]}  Nxf3+ {[%clk 0:01:47]} 18. Bxf3 {[%clk 0:02:30]}  Bxf3 {[%clk 0:01:40]} 19. Qxf3 {[%clk 0:02:28]}  Qxf3 {[%clk 0:01:39]} 20. gxf3 {[%clk 0:02:28]}  a5 {[%clk 0:01:39]} 21. Rfb1 {[%clk 0:02:29]}  Bc5 {[%clk 0:01:33]} 22. Ra4 {[%clk 0:02:25]}  Rd8 {[%clk 0:01:33]} 23. Rd1 {[%clk 0:02:08]}  e5 {[%clk 0:01:29]} 24. f4 {[%clk 0:02:04]}  Kg7 {[%clk 0:01:29]} 25. Kg2 {[%clk 0:02:04]}  Kg6 {[%clk 0:01:27]} 26. Kf3 {[%clk 0:02:03]}  Kf5 {[%clk 0:01:27]} 27. fxe5 {[%clk 0:02:03]}  fxe5 {[%clk 0:01:26]} 28. d3 {[%clk 0:02:03]}  Rd6 {[%clk 0:01:26]} 29. Rh4 {[%clk 0:02:03]}  Rf6 {[%clk 0:01:19]} 30. Ke2 {[%clk 0:01:59]}  Ke6 {[%clk 0:01:10]} 31. f3 {[%clk 0:01:59]}  h6 {[%clk 0:01:09]} 32. c3 {[%clk 0:01:55]}  Rg6 {[%clk 0:01:09]} 33. Rg4 {[%clk 0:01:52]}  Rf6 {[%clk 0:01:07]} 34. d4 {[%clk 0:01:51]}  exd4 {[%clk 0:01:04]} 35. cxd4 {[%clk 0:01:51]}  Bb4 {[%clk 0:01:03]} 36. d5+ {[%clk 0:01:52]}  Kd6 {[%clk 0:01:03]} 37. Rg8 {[%clk 0:01:52]}  Rf5 {[%clk 0:01:03]} 38. Rh8 {[%clk 0:01:50]}  b5 {[%clk 0:00:58]} 39. Rxh6+ {[%clk 0:01:45]}  f6 {[%clk 0:00:55]} 40. Rh8 {[%clk 0:01:44]}  a4 {[%clk 0:00:51]} 41. Rb8 {[%clk 0:01:44]}  Re5+ {[%clk 0:00:50]} 42. Kf1 {[%clk 0:01:39]}  a3 {[%clk 0:00:47]} 43. Rxb5 {[%clk 0:01:38]}  Bc3 {[%clk 0:00:36]} 44. Rb6+ {[%clk 0:01:35]}  Kd7 {[%clk 0:00:36]} 45. Ra6 {[%clk 0:01:30]}  Bb2 {[%clk 0:00:31]} 46. d6 {[%clk 0:01:24]}  Rc5 {[%clk 0:00:29]} 47. Ra7+ {[%clk 0:01:24]}  Kd8 {[%clk 0:00:17]} 48. d7 {[%clk 0:01:24]}  Rc1 {[%clk 0:00:17]} 49. Ra8+ {[%clk 0:01:25]}  Ke7 {[%clk 0:00:04]} 50. d8=Q+ {[%clk 0:01:25]}  Ke6 {[%clk 0:00:04]} 51. Rxc1 {[%clk 0:01:26]}  Bxc1 {[%clk 0:00:04]} 52. Ra6+ {[%clk 0:01:25]} 1-0


[Site "https://www.chess.com"]

[Event "Titled Tuesday Blitz January 10 Late 2023"]
[White "Melikhov, Evgeny V."]
[Black "Costachi, Mihnea"]
[WhiteFideId "4122046"]
[BlackFideId "1217518"]
[WhiteElo "2269"]
[BlackElo "2476"]
[Result "0-1"]
[Round "01"]
[TimeControl "180+2"]
[Date "2023.01.10"]
[WhiteClock "0:00:04"]
[BlackClock "0:00:20"]

1. d4 {[%clk 0:00:00]}  d5 {[%clk 0:00:00]} 2. c4 {[%clk 0:03:00]}  dxc4 {[%clk 0:02:59]} 3. Nf3 {[%clk 0:02:59]}  Nf6 {[%clk 0:02:59]} 4. e3 {[%clk 0:02:59]}  c5 {[%clk 0:02:57]} 5. Bxc4 {[%clk 0:02:59]}  a6 {[%clk 0:02:53]} 6. a4 {[%clk 0:02:58]}  cxd4 {[%clk 0:02:51]} 7. exd4 {[%clk 0:02:57]}  Bg4 {[%clk 0:02:50]} 8. O-O {[%clk 0:02:57]}  e6 {[%clk 0:02:50]} 9. Nc3 {[%clk 0:02:49]}  Be7 {[%clk 0:02:49]} 10. Qd3 {[%clk 0:02:30]}  Nc6 {[%clk 0:02:48]} 11. d5 {[%clk 0:02:22]}  Nb4 {[%clk 0:02:46]} 12. Qe2 {[%clk 0:01:58]}  exd5 {[%clk 0:02:37]} 13. Bb3 {[%clk 0:01:43]}  O-O {[%clk 0:02:34]} 14. h3 {[%clk 0:01:41]}  Bh5 {[%clk 0:02:32]} 15. g4 {[%clk 0:01:36]}  Bg6 {[%clk 0:02:32]} 16. Ne5 {[%clk 0:01:24]}  d4 {[%clk 0:02:31]} 17. Nxg6 {[%clk 0:01:23]}  hxg6 {[%clk 0:02:25]} 18. g5 {[%clk 0:01:23]}  dxc3 {[%clk 0:02:25]} 19. gxf6 {[%clk 0:00:56]}  Bxf6 {[%clk 0:02:22]} 20. bxc3 {[%clk 0:00:56]}  Bxc3 {[%clk 0:02:22]} 21. Rb1 {[%clk 0:00:55]}  Qf6 {[%clk 0:02:22]} 22. Be3 {[%clk 0:00:54]}  Rfe8 {[%clk 0:02:13]} 23. Qg4 {[%clk 0:00:51]}  a5 {[%clk 0:02:09]} 24. Rbd1 {[%clk 0:00:43]}  Rad8 {[%clk 0:02:05]} 25. Rd7 {[%clk 0:00:40]}  Rxd7 {[%clk 0:02:06]} 26. Qxd7 {[%clk 0:00:38]}  Qe7 {[%clk 0:01:55]} 27. Qg4 {[%clk 0:00:37]}  Qe4 {[%clk 0:01:54]} 28. Rd1 {[%clk 0:00:33]}  Qxg4+ {[%clk 0:01:38]} 29. hxg4 {[%clk 0:00:29]}  Nc6 {[%clk 0:01:37]} 30. Rd7 {[%clk 0:00:30]}  Re7 {[%clk 0:01:29]} 31. Rxe7 {[%clk 0:00:27]}  Nxe7 {[%clk 0:01:29]} 32. Bb6 {[%clk 0:00:24]}  g5 {[%clk 0:01:30]} 33. f3 {[%clk 0:00:20]}  Kf8 {[%clk 0:01:20]} 34. Kf2 {[%clk 0:00:19]}  f5 {[%clk 0:01:19]} 35. Ke3 {[%clk 0:00:19]}  fxg4 {[%clk 0:01:20]} 36. fxg4 {[%clk 0:00:18]}  Nc6 {[%clk 0:01:17]} 37. Ke4 {[%clk 0:00:18]}  Ke7 {[%clk 0:01:17]} 38. Bc5+ {[%clk 0:00:17]}  Kf6 {[%clk 0:01:13]} 39. Kd5 {[%clk 0:00:16]}  Ne5 {[%clk 0:01:11]} 40. Bd1 {[%clk 0:00:13]}  Nd3 {[%clk 0:01:09]} 41. Bd6 {[%clk 0:00:10]}  Bb4 {[%clk 0:01:08]} 42. Bc7 {[%clk 0:00:09]}  Ke7 {[%clk 0:01:01]} 43. Bc2 {[%clk 0:00:07]}  Nb2 {[%clk 0:00:57]} 44. Bb6 {[%clk 0:00:07]}  Bc3 {[%clk 0:00:52]} 45. Kc5 {[%clk 0:00:05]}  Ke6 {[%clk 0:00:49]} 46. Kb5 {[%clk 0:00:04]}  Ke5 {[%clk 0:00:46]} 47. Bxa5 {[%clk 0:00:04]}  Bxa5 {[%clk 0:00:46]} 48. Kxa5 {[%clk 0:00:03]}  Kf4 {[%clk 0:00:40]} 49. Kb6 {[%clk 0:00:04]}  Kxg4 {[%clk 0:00:40]} 50. Kxb7 {[%clk 0:00:04]}  Nc4 {[%clk 0:00:36]} 51. Bd3 {[%clk 0:00:05]}  Nb2 {[%clk 0:00:33]} 52. Bb5 {[%clk 0:00:03]}  Nxa4 {[%clk 0:00:20]} 53. Bxa4 {[%clk 0:00:03]}  Kh3 {[%clk 0:00:20]} 54. Kc6 {[%clk 0:00:04]}  g4 {[%clk 0:00:19]} 55. Kd5 {[%clk 0:00:04]}  g3 {[%clk 0:00:20]} 56. Bd7+ {[%clk 0:00:05]}  Kh2 {[%clk 0:00:21]} 57. Ke5 {[%clk 0:00:04]}  g2 {[%clk 0:00:20]} 0-1


[Site "https://www.chess.com"]

[Event "Titled Tuesday Blitz January 10 Late 2023"]
[White "Milikow, Yoav"]
[Black "Adury, Anant"]
[WhiteFideId "2822237"]
[BlackFideId "30964687"]
[WhiteElo "2394"]
[BlackElo "2123"]
[Result "1-0"]
[Round "01"]
[TimeControl "180+2"]
[Date "2023.01.10"]
[WhiteClock "0:00:14"]
[BlackClock "0:00:03"]

1. c4 {[%clk 0:00:00]}  Nf6 {[%clk 0:00:00]} 2. d4 {[%clk 0:02:59]}  d6 {[%clk 0:02:56]} 3. Nc3 {[%clk 0:02:57]}  e5 {[%clk 0:02:56]} 4. Nf3 {[%clk 0:02:55]}  Nc6 {[%clk 0:02:55]} 5. d5 {[%clk 0:02:55]}  Ne7 {[%clk 0:02:55]} 6. Qc2 {[%clk 0:02:54]}  Ng6 {[%clk 0:02:52]} 7. h4 {[%clk 0:02:53]}  Bg4 {[%clk 0:02:46]} 8. Nh2 {[%clk 0:02:48]}  Bd7 {[%clk 0:02:45]} 9. g3 {[%clk 0:02:28]}  Be7 {[%clk 0:02:41]} 10. e4 {[%clk 0:02:24]}  c5 {[%clk 0:02:36]} 11. Be2 {[%clk 0:02:17]}  a6 {[%clk 0:02:25]} 12. h5 {[%clk 0:02:16]}  Nf8 {[%clk 0:02:23]} 13. g4 {[%clk 0:02:14]}  h6 {[%clk 0:02:23]} 14. a4 {[%clk 0:02:05]}  N6h7 {[%clk 0:02:17]} 15. Nd1 {[%clk 0:02:04]}  Bg5 {[%clk 0:02:17]} 16. Ne3 {[%clk 0:01:51]}  Bf4 {[%clk 0:02:16]} 17. Bd2 {[%clk 0:01:51]}  Nf6 {[%clk 0:02:10]} 18. a5 {[%clk 0:01:40]}  N8h7 {[%clk 0:02:08]} 19. Nf5 {[%clk 0:01:33]}  Bxd2+ {[%clk 0:01:34]} 20. Kxd2 {[%clk 0:01:20]}  Bxf5 {[%clk 0:01:27]} 21. gxf5 {[%clk 0:01:17]}  Ng5 {[%clk 0:01:24]} 22. Bf3 {[%clk 0:01:18]}  Ke7 {[%clk 0:01:25]} 23. Ke3 {[%clk 0:01:03]}  b6 {[%clk 0:01:12]} 24. Ra2 {[%clk 0:01:00]}  b5 {[%clk 0:01:07]} 25. Nf1 {[%clk 0:00:55]}  Qb8 {[%clk 0:00:59]} 26. Nd2 {[%clk 0:00:49]}  b4 {[%clk 0:00:44]} 27. Bd1 {[%clk 0:00:48]}  Qc7 {[%clk 0:00:44]} 28. Qd3 {[%clk 0:00:47]}  Rab8 {[%clk 0:00:43]} 29. f3 {[%clk 0:00:47]}  Kd7 {[%clk 0:00:43]} 30. Ba4+ {[%clk 0:00:45]}  Ke7 {[%clk 0:00:43]} 31. Nb3 {[%clk 0:00:45]}  Rbg8 {[%clk 0:00:41]} 32. Raa1 {[%clk 0:00:45]}  g6 {[%clk 0:00:36]} 33. hxg6 {[%clk 0:00:45]}  fxg6 {[%clk 0:00:33]} 34. fxg6 {[%clk 0:00:44]}  Rxg6 {[%clk 0:00:34]} 35. Rag1 {[%clk 0:00:40]}  Rgg8 {[%clk 0:00:35]} 36. Qe2 {[%clk 0:00:40]}  Qd8 {[%clk 0:00:35]} 37. Qh2 {[%clk 0:00:38]}  Qf8 {[%clk 0:00:32]} 38. Qh4 {[%clk 0:00:36]}  Kd8 {[%clk 0:00:31]} 39. Rg3 {[%clk 0:00:34]}  Kc7 {[%clk 0:00:28]} 40. Ke2 {[%clk 0:00:31]}  Ne8 {[%clk 0:00:28]} 41. Qh5 {[%clk 0:00:27]}  Nf6 {[%clk 0:00:22]} 42. Qh4 {[%clk 0:00:23]}  Ne8 {[%clk 0:00:22]} 43. Qg4 {[%clk 0:00:21]}  Nf6 {[%clk 0:00:22]} 44. Qf5 {[%clk 0:00:21]}  Qf7 {[%clk 0:00:22]} 45. Rhg1 {[%clk 0:00:21]}  Qe7 {[%clk 0:00:15]} 46. Bc6 {[%clk 0:00:19]}  Nd7 {[%clk 0:00:14]} 47. Rh1 {[%clk 0:00:18]}  Nf8 {[%clk 0:00:13]} 48. Nc1 {[%clk 0:00:17]}  Ng6 {[%clk 0:00:12]} 49. Nd3 {[%clk 0:00:16]}  Qg7 {[%clk 0:00:12]} 50. Kd1 {[%clk 0:00:16]}  Rf8 {[%clk 0:00:02]} 51. Qg4 {[%clk 0:00:14]}  Nf4 {[%clk 0:00:03]} 52. Ne1 {[%clk 0:00:14]}  Qf6 {[%clk 0:00:03]} 53. Rhg1 {[%clk 0:00:11]}  Qe7 {[%clk 0:00:02]} 54. Rh1 {[%clk 0:00:11]}  Qg7 {[%clk 0:00:02]} 55. Kc2 {[%clk 0:00:11]}  Qe7 {[%clk 0:00:03]} 56. Kb3 {[%clk 0:00:11]}  Qg7 {[%clk 0:00:03]} 57. Ka4 {[%clk 0:00:12]}  Qe7 {[%clk 0:00:04]} 58. Nc2 {[%clk 0:00:12]}  Qg7 {[%clk 0:00:04]} 59. Ne3 {[%clk 0:00:13]}  Qg6 {[%clk 0:00:05]} 60. Nf5 {[%clk 0:00:13]}  Qf7 {[%clk 0:00:04]} 61. Kb3 {[%clk 0:00:13]}  Qh7 {[%clk 0:00:03]} 62. Ba4 {[%clk 0:00:13]}  Qf7 {[%clk 0:00:02]} 63. Rxh6 {[%clk 0:00:14]}  Rxh6 {[%clk 0:00:03]} 64. Nxh6 {[%clk 0:00:13]}  Qh7 {[%clk 0:00:03]} 65. Qxg5 {[%clk 0:00:14]} 1-0


[Site "https://www.chess.com"]

[Event "Titled Tuesday Blitz January 10 Late 2023"]
[White "Stoleriu, George"]
[Black "Rian, Kapriaga"]
[WhiteFideId "1227505"]
[BlackFideId "7103263"]
[WhiteElo "2390"]
[BlackElo "2089"]
[Result "1-0"]
[Round "01"]
[TimeControl "180+2"]
[Date "2023.01.10"]
[WhiteClock "0:01:49"]
[BlackClock "0:00:02"]

1. e4 {[%clk 0:00:00]}  c6 {[%clk 0:00:00]} 2. Nf3 {[%clk 0:03:00]}  d5 {[%clk 0:02:59]} 3. exd5 {[%clk 0:02:54]}  cxd5 {[%clk 0:02:58]} 4. Ne5 {[%clk 0:02:55]}  Nd7 {[%clk 0:02:57]} 5. d4 {[%clk 0:02:55]}  Nxe5 {[%clk 0:02:54]} 6. dxe5 {[%clk 0:02:55]}  a6 {[%clk 0:02:53]} 7. c4 {[%clk 0:02:56]}  Be6 {[%clk 0:02:41]} 8. Qb3 {[%clk 0:02:56]}  Qd7 {[%clk 0:02:36]} 9. Nc3 {[%clk 0:02:38]}  dxc4 {[%clk 0:02:34]} 10. Bxc4 {[%clk 0:02:34]}  Bxc4 {[%clk 0:02:32]} 11. Qxc4 {[%clk 0:02:35]}  Rc8 {[%clk 0:02:30]} 12. Qe4 {[%clk 0:02:36]}  e6 {[%clk 0:02:27]} 13. O-O {[%clk 0:02:30]}  Bc5 {[%clk 0:02:24]} 14. Rd1 {[%clk 0:02:30]}  Qc6 {[%clk 0:02:18]} 15. Qe2 {[%clk 0:02:30]}  Ne7 {[%clk 0:02:17]} 16. Ne4 {[%clk 0:02:30]}  O-O {[%clk 0:02:14]} 17. Bg5 {[%clk 0:02:30]}  Nd5 {[%clk 0:01:47]} 18. Rac1 {[%clk 0:02:30]}  Qb6 {[%clk 0:01:45]} 19. a3 {[%clk 0:02:28]}  Bd4 {[%clk 0:01:27]} 20. Rxc8 {[%clk 0:02:26]}  Rxc8 {[%clk 0:01:21]} 21. Nd6 {[%clk 0:02:09]}  Rc7 {[%clk 0:01:20]} 22. Bd8 {[%clk 0:02:09]}  Qxb2 {[%clk 0:01:11]} 23. Qxb2 {[%clk 0:02:09]}  Bxb2 {[%clk 0:00:52]} 24. Bxc7 {[%clk 0:02:07]}  Nxc7 {[%clk 0:00:50]} 25. Nc4 {[%clk 0:02:07]}  Bxa3 {[%clk 0:00:50]} 26. Nxa3 {[%clk 0:02:07]}  Nd5 {[%clk 0:00:30]} 27. Rc1 {[%clk 0:02:08]}  g5 {[%clk 0:00:29]} 28. Rc8+ {[%clk 0:02:08]}  Kg7 {[%clk 0:00:26]} 29. Rb8 {[%clk 0:02:07]}  b6 {[%clk 0:00:26]} 30. Nc4 {[%clk 0:02:08]}  b5 {[%clk 0:00:25]} 31. Nd6 {[%clk 0:02:05]}  b4 {[%clk 0:00:23]} 32. Rb7 {[%clk 0:02:05]}  a5 {[%clk 0:00:15]} 33. Ra7 {[%clk 0:02:01]}  b3 {[%clk 0:00:12]} 34. Rxa5 {[%clk 0:01:58]}  Nc3 {[%clk 0:00:11]} 35. Nc4 {[%clk 0:01:58]}  Kg6 {[%clk 0:00:10]} 36. Ra3 {[%clk 0:01:56]}  Ne2+ {[%clk 0:00:09]} 37. Kf1 {[%clk 0:01:55]}  Nd4 {[%clk 0:00:07]} 38. g4 {[%clk 0:01:55]}  h5 {[%clk 0:00:07]} 39. h3 {[%clk 0:01:52]}  hxg4 {[%clk 0:00:07]} 40. hxg4 {[%clk 0:01:52]}  f5 {[%clk 0:00:06]} 41. exf6 {[%clk 0:01:52]}  Kxf6 {[%clk 0:00:02]} 42. Nb2 {[%clk 0:01:49]} 1-0


[Site "https://www.chess.com"]

[Event "Titled Tuesday Blitz January 10 Late 2023"]
[White "Weisz, Bryan"]
[Black "Martinez Ramirez, Lennis"]
[WhiteFideId "30934133"]
[BlackFideId "3509079"]
[WhiteElo "1973"]
[BlackElo "2426"]
[Result "0-1"]
[Round "01"]
[TimeControl "180+2"]
[Date "2023.01.10"]
[WhiteClock "0:00:01"]
[BlackClock "0:00:11"]

1. e4 {[%clk 0:00:00]}  c5 {[%clk 0:00:00]} 2. Nf3 {[%clk 0:02:59]}  d6 {[%clk 0:02:59]} 3. d4 {[%clk 0:03:00]}  cxd4 {[%clk 0:03:00]} 4. Nxd4 {[%clk 0:03:00]}  Nf6 {[%clk 0:03:01]} 5. Nc3 {[%clk 0:03:01]}  a6 {[%clk 0:03:02]} 6. h3 {[%clk 0:02:57]}  e6 {[%clk 0:02:59]} 7. g4 {[%clk 0:02:52]}  b5 {[%clk 0:02:48]} 8. Bg2 {[%clk 0:02:50]}  Bb7 {[%clk 0:02:48]} 9. O-O {[%clk 0:02:47]}  Nfd7 {[%clk 0:02:49]} 10. Re1 {[%clk 0:02:42]}  Be7 {[%clk 0:02:47]} 11. Nd5 {[%clk 0:02:38]}  exd5 {[%clk 0:02:47]} 12. exd5 {[%clk 0:02:35]}  O-O {[%clk 0:02:21]} 13. Nc6 {[%clk 0:02:32]}  Bxc6 {[%clk 0:02:19]} 14. dxc6 {[%clk 0:02:28]}  Ne5 {[%clk 0:02:11]} 15. c7 {[%clk 0:02:27]}  Qxc7 {[%clk 0:02:12]} 16. Bxa8 {[%clk 0:02:21]}  Nbc6 {[%clk 0:02:12]} 17. Bxc6 {[%clk 0:02:21]}  Qxc6 {[%clk 0:02:13]} 18. Re3 {[%clk 0:02:18]}  f5 {[%clk 0:02:14]} 19. f4 {[%clk 0:01:51]}  Ng6 {[%clk 0:02:13]} 20. Rc3 {[%clk 0:01:47]}  Qe4 {[%clk 0:01:42]} 21. Qf3 {[%clk 0:01:32]}  Qe1+ {[%clk 0:01:29]} 22. Qf1 {[%clk 0:01:16]}  Qh4 {[%clk 0:01:28]} 23. Qf2 {[%clk 0:01:17]}  Qf6 {[%clk 0:01:28]} 24. g5 {[%clk 0:01:12]}  Qf7 {[%clk 0:01:22]} 25. Be3 {[%clk 0:01:06]}  h6 {[%clk 0:01:22]} 26. h4 {[%clk 0:00:58]}  b4 {[%clk 0:01:22]} 27. Rc7 {[%clk 0:00:57]}  hxg5 {[%clk 0:01:11]} 28. hxg5 {[%clk 0:00:51]}  Qd5 {[%clk 0:00:35]} 29. Re1 {[%clk 0:00:40]}  Bd8 {[%clk 0:00:20]} 30. Ra7 {[%clk 0:00:05]}  Bxg5 {[%clk 0:00:19]} 31. fxg5 {[%clk 0:00:05]}  f4 {[%clk 0:00:18]} 32. Bd4 {[%clk 0:00:05]}  Qxg5+ {[%clk 0:00:18]} 33. Kf1 {[%clk 0:00:04]}  Ne5 {[%clk 0:00:19]} 34. Bxe5 {[%clk 0:00:04]}  dxe5 {[%clk 0:00:15]} 35. Qe2 {[%clk 0:00:04]}  f3 {[%clk 0:00:16]} 36. Qc4+ {[%clk 0:00:04]}  Kh8 {[%clk 0:00:15]} 37. Kf2 {[%clk 0:00:04]}  Qd2+ {[%clk 0:00:15]} 38. Kg3 {[%clk 0:00:04]}  Qg2+ {[%clk 0:00:14]} 39. Kh4 {[%clk 0:00:02]}  f2 {[%clk 0:00:13]} 40. Qe2 {[%clk 0:00:03]}  fxe1=Q+ {[%clk 0:00:13]} 41. Qxe1 {[%clk 0:00:01]}  Rf4+ {[%clk 0:00:11]} 42. Kh5 {[%clk 0:00:01]}  Qg4# {[%clk 0:00:11]} 0-1


[Site "https://www.chess.com"]

[Event "Titled Tuesday Blitz January 10 Late 2023"]
[White "Gerbelli Neto, Eduardo"]
[Black "Levitskiy, Andrey"]
[WhiteFideId "2103281"]
[BlackFideId "14132885"]
[WhiteElo "2114"]
[BlackElo "2304"]
[Result "0-1"]
[Round "01"]
[TimeControl "180+2"]
[Date "2023.01.10"]
[WhiteClock "0:00:15"]
[BlackClock "0:00:16"]

1. e4 {[%clk 0:00:00]}  e6 {[%clk 0:00:00]} 2. d4 {[%clk 0:02:58]}  d5 {[%clk 0:02:59]} 3. Nc3 {[%clk 0:02:58]}  Bb4 {[%clk 0:03:00]} 4. Ne2 {[%clk 0:02:58]}  Nc6 {[%clk 0:03:00]} 5. a3 {[%clk 0:02:54]}  Ba5 {[%clk 0:02:58]} 6. e5 {[%clk 0:02:52]}  f6 {[%clk 0:02:59]} 7. Nf4 {[%clk 0:02:47]}  Qd7 {[%clk 0:02:58]} 8. Bb5 {[%clk 0:02:24]}  Qf7 {[%clk 0:02:51]} 9. O-O {[%clk 0:02:19]}  Ne7 {[%clk 0:02:17]} 10. exf6 {[%clk 0:02:08]}  Qxf6 {[%clk 0:02:13]} 11. Be3 {[%clk 0:02:01]}  O-O {[%clk 0:02:08]} 12. Nce2 {[%clk 0:01:46]}  Bd7 {[%clk 0:02:05]} 13. Nd3 {[%clk 0:01:32]}  Bb6 {[%clk 0:01:58]} 14. Qd2 {[%clk 0:01:27]}  Nf5 {[%clk 0:01:47]} 15. Bxc6 {[%clk 0:01:11]}  Bxc6 {[%clk 0:01:39]} 16. Ne5 {[%clk 0:01:02]}  h6 {[%clk 0:01:36]} 17. c3 {[%clk 0:01:03]}  Bb5 {[%clk 0:01:11]} 18. a4 {[%clk 0:00:59]}  Bxe2 {[%clk 0:01:09]} 19. Qxe2 {[%clk 0:00:52]}  c6 {[%clk 0:00:37]} 20. Nd7 {[%clk 0:00:53]}  Qg6 {[%clk 0:00:32]} 21. Nxf8 {[%clk 0:00:50]}  Rxf8 {[%clk 0:00:32]} 22. h3 {[%clk 0:00:46]}  Bc7 {[%clk 0:00:33]} 23. Qg4 {[%clk 0:00:41]}  Qf6 {[%clk 0:00:31]} 24. Rae1 {[%clk 0:00:40]}  e5 {[%clk 0:00:30]} 25. dxe5 {[%clk 0:00:27]}  Qxe5 {[%clk 0:00:26]} 26. g3 {[%clk 0:00:27]}  Qf6 {[%clk 0:00:27]} 27. Bf4 {[%clk 0:00:22]}  Bb6 {[%clk 0:00:23]} 28. Be5 {[%clk 0:00:19]}  Qf7 {[%clk 0:00:20]} 29. Kg2 {[%clk 0:00:19]}  Kh7 {[%clk 0:00:21]} 30. h4 {[%clk 0:00:19]}  Ne7 {[%clk 0:00:20]} 31. Bd4 {[%clk 0:00:19]}  Bc7 {[%clk 0:00:20]} 32. Re2 {[%clk 0:00:19]}  Nf5 {[%clk 0:00:19]} 33. Rfe1 {[%clk 0:00:18]}  h5 {[%clk 0:00:19]} 34. Qg5 {[%clk 0:00:17]}  Bd8 {[%clk 0:00:16]} 35. Qd2 {[%clk 0:00:17]}  Bxh4 {[%clk 0:00:16]} 36. gxh4 {[%clk 0:00:15]}  Nxh4+ {[%clk 0:00:15]} 37. Kh1 {[%clk 0:00:15]}  Qf3+ {[%clk 0:00:16]} 0-1


[Site "https://www.chess.com"]